[Event "Masters Tournament (MTO)"]
[Site "Biel, Switzerland"]
[Date "2026.07.22"]
[Round "9.43"]
[White "Magnussen, Petur Gardar"]
[Black "Di Candia, Roberto"]
[Result "0-1"]
[TimeControl "100+30+30sec/move"]
[WhiteTitle "-"]
[BlackTitle "-"]
[WhiteFideId "7203802"]
[BlackFideId "856649"]
[WhiteElo "1957"]
[BlackElo "1988"]

1. e4 {[%clk 01:40:58]} {[%emt 00:00:01]} e5 {[%clk 01:40:56]} {[%emt
00:00:05]} 2. Nf3 {[%clk 01:41:24]} {[%emt 00:00:04]} Nc6 {[%clk 01:41:22]}
{[%emt 00:00:04]} 3. Bb5 {[%clk 01:41:47]} {[%emt 00:00:06]} g6 {[%clk
01:41:45]} {[%emt 00:00:07]} 4. c3 {[%clk 01:42:04]} {[%emt 00:00:14]} a6
{[%clk 01:42:05]} {[%emt 00:00:10]} 5. Ba4 {[%clk 01:42:19]} {[%emt 00:00:15]}
Bg7 {[%clk 01:42:19]} {[%emt 00:00:16]} 6. d4 {[%clk 01:42:23]} {[%emt
00:00:26]} exd4 {[%clk 01:42:43]} {[%emt 00:00:06]} 7. cxd4 {[%clk 01:42:47]}
{[%emt 00:00:06]} b5 {[%clk 01:43:08]} {[%emt 00:00:05]} 8. Bc2 {[%clk
01:42:58]} {[%emt 00:00:19]} d5 {[%clk 01:43:15]} {[%emt 00:00:23]} 9. h3
{[%clk 01:41:43]} {[%emt 00:01:44]} dxe4 {[%clk 01:41:09]} {[%emt 00:02:37]} 10.
Bxe4 {[%clk 01:41:59]} {[%emt 00:00:13]} Bb7 {[%clk 01:40:38]} {[%emt
00:01:02]} 11. O-O {[%clk 01:41:09]} {[%emt 00:01:19]} Nge7 {[%clk 01:39:57]}
{[%emt 00:01:12]} 12. Bf4 {[%clk 01:36:39]} {[%emt 00:05:00]} O-O {[%clk
01:36:42]} {[%emt 00:03:44]} 13. Nc3 {[%clk 01:34:23]} {[%emt 00:02:46]} f5
{[%clk 01:33:14]} {[%emt 00:03:59]} 14. Qb3+ {[%clk 01:23:37]} {[%emt
00:11:16]} Kh8 {[%clk 01:33:36]} {[%emt 00:00:08]} 15. Bxc6 {[%clk 01:22:11]}
{[%emt 00:01:56]} Nxc6 {[%clk 01:28:01]} {[%emt 00:06:05]} 16. Ng5 {[%clk
01:20:09]} {[%emt 00:02:31]} Qf6 {[%clk 01:27:27]} {[%emt 00:01:04]} 17. Ne6
{[%clk 00:52:55]} {[%emt 00:27:44]} Nxd4 {[%clk 01:26:29]} {[%emt 00:01:29]} 18.
Nxd4 {[%clk 00:53:16]} {[%emt 00:00:08]} Qxd4 {[%clk 01:26:51]} {[%emt
00:00:09]} 19. Bxc7 {[%clk 00:53:05]} {[%emt 00:00:41]} b4 {[%clk 01:11:49]}
{[%emt 00:15:30]} 20. Na4 {[%clk 00:46:58]} {[%emt 00:06:38]} Bd5 {[%clk
01:04:57]} {[%emt 00:07:22]} 21. Qd1 {[%clk 00:43:36]} {[%emt 00:03:52]} Qe4
{[%clk 00:58:41]} {[%emt 00:06:46]} 22. f3 {[%clk 00:42:42]} {[%emt 00:01:24]}
Qe3+ {[%clk 00:56:20]} {[%emt 00:02:51]} 23. Kh1 {[%clk 00:42:09]} {[%emt
00:01:03]} Bc6 {[%clk 00:56:19]} {[%emt 00:00:30]} 24. Qb3 {[%clk 00:36:00]}
{[%emt 00:06:40]} Qxb3 {[%clk 00:53:50]} {[%emt 00:03:00]} 25. axb3 {[%clk
00:36:28]} {[%emt 00:00:01]} Bb5 {[%clk 00:52:08]} {[%emt 00:02:11]} 26. Rfe1
{[%clk 00:35:14]} {[%emt 00:01:45]} Rfe8 {[%clk 00:37:54]} {[%emt 00:14:44]} 27.
Ba5 {[%clk 00:21:36]} {[%emt 00:14:07]} Bxa4 {[%clk 00:36:50]} {[%emt
00:01:35]} 28. bxa4 {[%clk 00:21:32]} {[%emt 00:00:34]} b3 {[%clk 00:34:05]}
{[%emt 00:03:15]} 29. Bc3 {[%clk 00:13:47]} {[%emt 00:08:15]} Bxc3 {[%clk
00:30:32]} {[%emt 00:04:03]} 30. bxc3 {[%clk 00:14:15]} {[%emt 00:00:02]} b2
{[%clk 00:30:35]} {[%emt 00:00:26]} 31. Rab1 {[%clk 00:13:22]} {[%emt
00:01:24]} Rxe1+ 32. Rxe1 {[%clk 00:13:51]} Rb8 {[%clk 00:31:14]} {[%emt
00:00:12]} 33. Rb1 {[%clk 00:14:05]} {[%emt 00:00:16]} Kg7 {[%clk 00:31:33]}
{[%emt 00:00:12]} 34. Kg1 {[%clk 00:13:46]} {[%emt 00:00:48]} Kf6 {[%clk
00:27:41]} {[%emt 00:04:18]} 35. Kf2 {[%clk 00:13:48]} {[%emt 00:00:32]} Ke5
{[%clk 00:27:31]} {[%emt 00:00:40]} 36. Ke3 {[%clk 00:13:59]} {[%emt 00:00:19]}
Kd5 {[%clk 00:27:24]} {[%emt 00:00:36]} 37. Kd3 {[%clk 00:14:14]} {[%emt
00:00:16]} Rb3 {[%clk 00:27:27]} {[%emt 00:00:28]} 38. f4 {[%clk 00:10:38]}
{[%emt 00:04:05]} h5 {[%clk 00:25:32]} {[%emt 00:02:25]} 39. Kc2 {[%clk
00:08:55]} {[%emt 00:02:14]} Kc4 {[%clk 00:25:51]} {[%emt 00:00:11]} 40. Rxb2
{[%clk 00:08:56]} {[%emt 00:00:29]} Rxc3+ {[%clk 00:26:14]} {[%emt 00:00:06]}
41. Kd1 {[%clk 00:07:52]} {[%emt 00:01:34]} Ra3 {[%clk 00:23:36]} {[%emt
00:03:09]} 42. Rb6 {[%clk 00:06:13]} {[%emt 00:02:08]} Rxa4 {[%clk 00:23:52]}
{[%emt 00:00:15]} 43. Rxg6 {[%clk 00:06:29]} {[%emt 00:00:13]} Kd3 {[%clk
00:23:04]} {[%emt 00:01:18]} 44. Kc1 {[%clk 00:05:55]} {[%emt 00:01:04]} Rxf4
{[%clk 00:21:34]} {[%emt 00:02:00]} 45. Rxa6 {[%clk 00:04:15]} {[%emt
00:02:10]} Rf1+ {[%clk 00:21:57]} {[%emt 00:00:07]} 46. Kb2 {[%clk 00:04:30]}
{[%emt 00:00:16]} Rf2+ {[%clk 00:22:17]} {[%emt 00:00:10]} 47. Kb3 {[%clk
00:04:56]} {[%emt 00:00:03]} Rxg2 {[%clk 00:22:29]} {[%emt 00:00:18]} 48. Rh6
{[%clk 00:05:20]} {[%emt 00:00:06]} f4 {[%clk 00:22:20]} {[%emt 00:00:39]} 49.
Rxh5 {[%clk 00:05:32]} {[%emt 00:00:18]} f3 {[%clk 00:22:29]} {[%emt 00:00:21]}
50. Rf5 {[%clk 00:05:44]} {[%emt 00:00:18]} f2 {[%clk 00:22:22]} {[%emt
00:00:37]} 51. h4 {[%clk 00:05:48]} {[%emt 00:00:26]} Ke4 {[%clk 00:22:09]}
{[%emt 00:00:43]} 52. Rf8 {[%clk 00:05:54]} {[%emt 00:00:23]} Rg3+ {[%clk
00:22:33]} {[%emt 00:00:07]} 0-1

[Event "Masters Tournament (MTO)"]
[Site "Biel, Switzerland"]
[Date "2026.07.22"]
[Round "9.44"]
[White "Rosen, Noah"]
[Black "Vedant, Nayudu"]
[Result "0-1"]
[TimeControl "100+30+30sec/move"]
[WhiteTitle "-"]
[BlackTitle "-"]
[WhiteFideId "1356267"]
[BlackFideId "33369780"]
[WhiteElo "1921"]
[BlackElo "1797"]

1. e4 {[%clk 01:40:54]} {[%emt 00:00:05]} c6 {[%clk 01:40:57]} {[%emt
00:00:05]} 2. d4 {[%clk 01:41:19]} {[%emt 00:00:05]} d5 {[%clk 01:41:19]}
{[%emt 00:00:08]} 3. e5 {[%clk 01:41:42]} {[%emt 00:00:07]} Bf5 {[%clk
01:41:45]} {[%emt 00:00:05]} 4. Nf3 {[%clk 01:42:05]} {[%emt 00:00:05]} e6
{[%clk 01:42:11]} {[%emt 00:00:04]} 5. Be2 {[%clk 01:42:30]} {[%emt 00:00:05]}
c5 {[%clk 01:42:30]} {[%emt 00:00:12]} 6. c3 {[%clk 01:42:51]} {[%emt
00:00:09]} Nc6 {[%clk 01:42:54]} {[%emt 00:00:06]} 7. O-O {[%clk 01:43:11]}
{[%emt 00:00:10]} cxd4 {[%clk 01:43:11]} {[%emt 00:00:13]} 8. cxd4 {[%clk
01:42:40]} {[%emt 00:01:00]} Nge7 {[%clk 01:43:33]} {[%emt 00:00:09]} 9. Nc3
{[%clk 01:42:48]} {[%emt 00:00:22]} Bg4 {[%clk 01:43:47]} {[%emt 00:00:16]} 10.
Bg5 {[%clk 01:34:05]} {[%emt 00:09:12]} h6 {[%clk 01:32:35]} {[%emt 00:11:43]}
11. Nb5 {[%clk 01:33:21]} {[%emt 00:01:13]} hxg5 {[%clk 01:19:54]} {[%emt
00:13:12]} 12. Nd6+ {[%clk 01:33:43]} {[%emt 00:00:07]} Kd7 {[%clk 01:20:15]}
{[%emt 00:00:10]} 13. Nxf7 {[%clk 01:34:06]} {[%emt 00:00:06]} Qe8 {[%clk
01:18:22]} {[%emt 00:02:24]} 14. Nxh8 {[%clk 01:33:52]} {[%emt 00:00:42]} Qh5
{[%clk 01:16:38]} {[%emt 00:02:15]} 15. Nf7 {[%clk 01:18:54]} {[%emt 00:15:28]}
Qxf7 {[%clk 01:00:27]} {[%emt 00:16:42]} 16. Nxg5 {[%clk 01:18:51]} {[%emt
00:00:32]} Qf4 {[%clk 00:49:42]} {[%emt 00:11:16]} 17. Bxg4 {[%clk 01:16:32]}
{[%emt 00:02:48]} Qxg5 {[%clk 00:50:10]} {[%emt 00:00:02]} 18. f4 {[%clk
01:14:56]} {[%emt 00:02:06]} Qg6 {[%clk 00:42:03]} {[%emt 00:08:38]} 19. f5
{[%clk 00:55:55]} {[%emt 00:19:31]} exf5 {[%clk 00:33:12]} {[%emt 00:09:21]} 20.
Bh3 {[%clk 00:54:40]} {[%emt 00:01:44]} Qg5 {[%clk 00:27:21]} {[%emt 00:06:22]}
21. Qb3 {[%clk 00:53:07]} {[%emt 00:02:02]} Kc7 {[%clk 00:23:20]} {[%emt
00:04:32]} 22. Rac1 {[%clk 00:51:43]} {[%emt 00:01:53]} Rd8 {[%clk 00:18:43]}
{[%emt 00:05:07]} 23. Rc5 {[%clk 00:43:08]} {[%emt 00:09:05]} g6 {[%clk
00:12:29]} {[%emt 00:06:45]} 24. Rfc1 {[%clk 00:41:57]} {[%emt 00:01:40]} Bh6
{[%clk 00:12:15]} {[%emt 00:00:45]} 25. R1c2 {[%clk 00:40:11]} {[%emt
00:02:15]} Qe3+ {[%clk 00:12:30]} {[%emt 00:00:16]} 26. Qxe3 {[%clk 00:40:33]}
{[%emt 00:00:07]} Bxe3+ {[%clk 00:12:59]} {[%emt 00:00:02]} 27. Kf1 {[%clk
00:40:28]} {[%emt 00:00:34]} Bxd4 {[%clk 00:13:24]} {[%emt 00:00:06]} 28. Rb5
{[%clk 00:40:10]} {[%emt 00:00:47]} Bxe5 {[%clk 00:12:38]} {[%emt 00:01:16]} 29.
g3 {[%clk 00:40:22]} {[%emt 00:00:19]} Kb8 {[%clk 00:09:01]} {[%emt 00:04:07]}
30. Rd2 {[%clk 00:37:46]} {[%emt 00:03:05]} d4 {[%clk 00:06:26]} {[%emt
00:03:05]} 31. Bg2 {[%clk 00:37:55]} {[%emt 00:00:21]} Kc7 {[%clk 00:05:04]}
{[%emt 00:01:53]} 32. Ke1 {[%clk 00:35:20]} {[%emt 00:03:04]} a6 {[%clk
00:04:46]} {[%emt 00:00:50]} 33. Rb3 {[%clk 00:34:25]} {[%emt 00:01:24]} Nd5
{[%clk 00:03:09]} {[%emt 00:02:07]} 34. a3 {[%clk 00:33:37]} {[%emt 00:01:18]}
Na5 {[%clk 00:02:00]} {[%emt 00:01:39]} 35. Rbd3 {[%clk 00:33:00]} {[%emt
00:01:06]} Ne3 {[%clk 00:02:13]} {[%emt 00:00:18]} 36. Bf3 {[%clk 00:32:43]}
{[%emt 00:00:46]} Nac4 {[%clk 00:02:13]} {[%emt 00:00:31]} 37. Re2 {[%clk
00:32:27]} {[%emt 00:00:46]} Bf6 {[%clk 00:02:04]} {[%emt 00:00:39]} 38. a4
{[%clk 00:31:53]} {[%emt 00:01:03]} Ne5 {[%clk 00:02:18]} {[%emt 00:00:17]} 39.
Rexe3 {[%clk 00:30:24]} {[%emt 00:01:59]} dxe3 {[%clk 00:02:20]} {[%emt
00:00:28]} 40. Rxe3 {[%clk 00:28:15]} {[%emt 00:02:38]} Nxf3+ {[%clk 00:01:55]}
{[%emt 00:00:56]} 41. Rxf3 {[%clk 00:28:38]} {[%emt 00:00:07]} Bxb2 {[%clk
00:30:19]} {[%emt 00:02:06]} 42. h4 {[%clk 00:56:56]} {[%emt 00:02:11]} Rd4
{[%clk 00:26:33]} {[%emt 00:04:16]} 43. Rb3 {[%clk 00:56:59]} {[%emt 00:00:27]}
Re4+ {[%clk 00:26:58]} {[%emt 00:00:05]} 44. Kf2 {[%clk 00:56:58]} {[%emt
00:00:30]} Be5 {[%clk 00:26:52]} {[%emt 00:00:37]} 45. a5 {[%clk 00:57:11]}
{[%emt 00:00:17]} Rc4 {[%clk 00:26:15]} {[%emt 00:01:07]} 46. Rd3 {[%clk
00:55:45]} {[%emt 00:01:56]} Rc2+ {[%clk 00:26:05]} {[%emt 00:00:41]} 47. Kf1
{[%clk 00:54:55]} {[%emt 00:01:19]} Rc3 {[%clk 00:26:23]} {[%emt 00:00:12]} 48.
Rd5 {[%clk 00:54:53]} {[%emt 00:00:32]} Bxg3 {[%clk 00:26:41]} {[%emt
00:00:12]} 49. h5 {[%clk 00:55:15]} {[%emt 00:00:07]} gxh5 {[%clk 00:26:49]}
{[%emt 00:00:24]} 50. Rxf5 {[%clk 00:55:39]} {[%emt 00:00:06]} h4 {[%clk
00:26:55]} {[%emt 00:00:24]} 51. Rf7+ {[%clk 00:55:41]} {[%emt 00:00:28]} Kc6
{[%clk 00:27:16]} {[%emt 00:00:09]} 52. Rf6+ {[%clk 00:55:45]} {[%emt
00:00:25]} Bd6 {[%clk 00:26:47]} {[%emt 00:00:59]} 53. Rh6 {[%clk 00:55:39]}
{[%emt 00:00:35]} h3 {[%clk 00:27:07]} {[%emt 00:00:11]} 54. Kg1 {[%clk
00:54:35]} {[%emt 00:01:34]} h2+ {[%clk 00:27:13]} {[%emt 00:00:24]} 55. Kh1
{[%clk 00:54:58]} {[%emt 00:00:07]} Rc5 {[%clk 00:25:53]} {[%emt 00:01:50]} 56.
Rh3 {[%clk 00:53:17]} {[%emt 00:02:10]} Rc1+ {[%clk 00:26:13]} {[%emt
00:00:11]} 57. Kg2 {[%clk 00:53:42]} {[%emt 00:00:05]} h1=Q+ {[%clk 00:26:06]}
{[%emt 00:00:37]} 0-1

[Event "Masters Tournament (MTO)"]
[Site "Biel, Switzerland"]
[Date "2026.07.22"]
[Round "9.45"]
[White "Hajduk, Tomasz"]
[Black "Simon, Ralf-Axel"]
[Result "1-0"]
[TimeControl "100+30+30sec/move"]
[WhiteTitle "-"]
[BlackTitle "-"]
[WhiteFideId "21811415"]
[BlackFideId "4603125"]
[WhiteElo "1921"]
[BlackElo "1935"]

1. e4 {[%clk 01:40:57]} {[%emt 00:00:03]} e5 {[%clk 01:40:43]} {[%emt
00:00:18]} 2. Nf3 {[%clk 01:41:23]} {[%emt 00:00:04]} Nc6 {[%clk 01:40:47]}
{[%emt 00:00:26]} 3. Bb5 {[%clk 01:40:42]} {[%emt 00:01:11]} Nf6 {[%clk
01:40:22]} {[%emt 00:00:54]} 4. O-O {[%clk 01:41:05]} {[%emt 00:00:08]} Nxe4
{[%clk 01:36:53]} {[%emt 00:03:58]} 5. Re1 {[%clk 01:41:14]} {[%emt 00:00:22]}
Nd6 {[%clk 01:33:28]} {[%emt 00:03:54]} 6. Bxc6 {[%clk 01:37:26]} {[%emt
00:04:18]} dxc6 {[%emt 00:02:29]} 7. Nxe5 {[%clk 01:37:50]} {[%emt 00:00:05]}
Be7 {[%clk 01:25:56]} {[%emt 00:06:04]} 8. d4 {[%clk 01:38:10]} {[%emt
00:00:10]} O-O {[%clk 01:25:10]} {[%emt 00:01:16]} 9. Nc3 {[%clk 01:35:50]}
{[%emt 00:02:51]} Bf5 {[%clk 00:56:37]} {[%emt 00:29:01]} 10. Bf4 {[%clk
01:24:15]} {[%emt 00:12:07]} Re8 {[%clk 00:48:43]} {[%emt 00:08:23]} 11. Ne2
{[%clk 01:10:30]} {[%emt 00:14:15]} h6 {[%clk 00:41:47]} {[%emt 00:07:27]} 12.
Ng3 {[%clk 01:10:35]} {[%emt 00:00:24]} Bh7 {[%clk 00:40:01]} {[%emt 00:02:17]}
13. c3 {[%clk 00:47:38]} {[%emt 00:23:28]} g5 {[%clk 00:15:54]} {[%emt
00:24:36]} 14. Bd2 {[%clk 00:43:22]} {[%emt 00:04:46]} f6 {[%clk 00:15:24]}
{[%emt 00:01:00]} 15. Qb3+ {[%clk 00:41:08]} {[%emt 00:02:43]} Kf8 {[%clk
00:14:31]} {[%emt 00:01:23]} 16. Ng4 {[%clk 00:41:14]} {[%emt 00:00:23]} Kg7
{[%clk 00:13:55]} {[%emt 00:01:06]} 17. Nh5+ {[%clk 00:30:36]} {[%emt
00:11:08]} Kg6 {[%clk 00:13:12]} {[%emt 00:01:14]} 18. Qc2+ {[%clk 00:25:08]}
{[%emt 00:05:58]} f5 {[%clk 00:12:36]} {[%emt 00:01:06]} 19. Re6+ {[%clk
00:24:11]} {[%emt 00:01:27]} 1-0